bitfinex/quotes_BTCUSD_20250812
["timestamp","ask_amount","ask_price","bid_price","bid_amount"]
[1754975874767,0.9295573,118880.0,118870.0,1e-08]
[1754975874969,0.95895277,118880.0,118870.0,1e-08]
[1754975875491,0.96495272,118880.0,118870.0,1e-08]
[1754975875687,0.96195272,118880.0,118870.0,1e-08]
[1754975875883,0.95895272,118880.0,118870.0,1e-08]
[1754975876158,0.93695272,118880.0,118870.0,1e-08]
[1754975876371,0.96595272,118880.0,118870.0,1e-08]
[1754975877014,0.94095272,118880.0,118870.0,1e-08]
[1754975877452,0.96595272,118880.0,118870.0,1e-08]
[1754975877668,0.94095272,118880.0,118870.0,1e-08]
[1754975877879,0.96595272,118880.0,118870.0,1e-08]
[1754975879801,0.9925743,118880.0,118870.0,1e-08]
[1754975880046,0.18572836,118850.0,118830.0,0.00765692]
[1754975880258,0.84314576,118840.0,118830.0,0.00814489]
[1754975880498,0.39714577,118840.0,118830.0,0.01018489]
[1754975880929,0.40241577,118840.0,118830.0,0.00507489]
[1754975881147,0.44981717,118840.0,118830.0,0.00068797]
[1754975881337,0.47237218,118840.0,118830.0,0.00068797]
[1754975881583,0.52778528,118840.0,118830.0,0.00068797]
[1754975882460,0.55253446,118840.0,118830.0,0.00068797]
[1754975882674,0.55253446,118840.0,118830.0,0.00168797]
[1754975882847,0.5388141,118840.0,118830.0,0.00168797]
[1754975883049,0.55249979,118840.0,118830.0,0.00168797]
[1754975883434,0.5524893,118840.0,118830.0,0.00168797]
[1754975884630,0.5544893,118840.0,118830.0,0.00168797]
[1754975885525,0.5544893,118840.0,118830.0,0.00068797]
[1754975885938,0.5564893,118840.0,118830.0,0.00068797]
[1754975886068,0.5598603,118840.0,118830.0,0.00068797]
[1754975888610,0.58241531,118840.0,118830.0,0.00068797]
[1754975889011,0.58240591,118840.0,118830.0,0.00068797]
[1754975891890,0.55896169,118840.0,118830.0,0.00068797]
[1754975892041,0.58239029,118840.0,118830.0,0.00068797]
[1754975892448,0.5823905,118840.0,118830.0,0.00068797]
[1754975893482,0.6329405,118840.0,118830.0,0.00068797]
[1754975893660,0.5823905,118840.0,118830.0,0.00068797]
[1754975893891,0.56676863,118840.0,118830.0,0.00068797]
[1754975894129,0.61246584,118840.0,118830.0,0.00068797]
[1754975895851,0.81458584,118840.0,118830.0,0.00068797]
[1754975896251,0.79203083,118840.0,118830.0,0.00068797]
[1754975898165,0.83689666,118840.0,118830.0,0.00068797]
[1754975900087,0.83605516,118840.0,118830.0,0.00068797]
[1754975900964,0.75808705,118840.0,118830.0,0.00068797]
[1754975901167,0.7280623,118840.0,118830.0,0.00068797]
[1754975901613,0.72806943,118840.0,118830.0,0.00068797]
[1754975903252,0.72807862,118840.0,118830.0,0.00068797]
[1754975904932,0.72807862,118840.0,118830.0,0.00269797]
[1754975905283,0.72807862,118840.0,118830.0,0.00068797]
[1754975905679,0.75471144,118840.0,118830.0,0.00068797]
[1754975906158,0.70984561,118840.0,118830.0,0.00068797]
[1754975906687,0.70985187,118840.0,118830.0,0.00068797]
[1754975908221,0.76967298,118840.0,118830.0,0.00068797]
[1754975909162,0.16128804,118830.0,118820.0,0.0002]
[1754975909364,0.54778838,118830.0,118820.0,0.00221]
[1754975909996,0.55237538,118830.0,118820.0,0.00221]
[1754975910210,0.55246942,118830.0,118820.0,0.00221]
[1754975910359,0.55446942,118830.0,118820.0,0.00221]
[1754975910567,0.55446946,118830.0,118820.0,0.00221]
[1754975910792,0.47198503,118830.0,118820.0,0.00221]
[1754975913156,0.46412907,118830.0,118820.0,0.00217]
[1754975913452,0.34334448,118830.0,118820.0,0.00519]
[1754975913658,0.47194448,118830.0,118820.0,0.00519]
[1754975913856,0.34334448,118830.0,118820.0,0.00519]
[1754975914059,0.20763449,118830.0,118820.0,0.17351183]
[1754975914267,0.41800434,118830.0,118820.0,0.17351183]
[1754975914432,0.41341822,118830.0,118820.0,0.17351183]
[1754975914631,0.40752654,118830.0,118820.0,0.17351183]
[1754975915012,0.40652654,118830.0,118820.0,0.17351183]
[1754975915949,0.40552654,118830.0,118820.0,0.17351183]
[1754975916144,0.23721103,118830.0,118820.0,0.17551183]
[1754975917066,0.23721103,118830.0,118820.0,0.17651183]
[1754975917506,0.21917081,118830.0,118820.0,0.17651183]
[1754975917883,0.09057081,118830.0,118820.0,0.17651183]
[1754975918097,0.21132325,118830.0,118820.0,0.17651183]
[1754975931553,0.21132325,118830.0,118820.0,0.17349183]
[1754975932168,0.21647325,118830.0,118820.0,0.17349183]
[1754975932873,0.21132325,118830.0,118820.0,0.17349183]
[1754975934464,0.21647325,118830.0,118820.0,0.17349183]
[1754975935232,0.38478091,118830.0,118820.0,0.17148183]
[1754975935614,0.38478091,118830.0,118820.0,0.00316]
[1754975943518,0.37955091,118830.0,118820.0,0.17364183]
[1754975944737,0.38470091,118830.0,118820.0,0.17364183]
[1754975946137,0.38155091,118830.0,118820.0,0.17364183]
[1754975947395,0.37955091,118830.0,118820.0,0.17364183]
[1754975947539,0.21124325,118830.0,118820.0,0.17673183]
[1754975947739,0.08272325,118830.0,118820.0,0.17673183]
[1754975947932,0.21120325,118830.0,118820.0,0.17673183]
[1754975949572,0.21120325,118830.0,118820.0,0.17364183]
[1754975949990,0.21326325,118830.0,118820.0,0.17364183]
[1754975950185,0.21645325,118830.0,118820.0,0.17364183]
[1754975951101,0.21326325,118830.0,118820.0,0.17364183]
[1754975951304,0.21120325,118830.0,118820.0,0.17364183]
[1754975957495,0.21645325,118830.0,118820.0,0.17364183]
[1754975959267,0.38476091,118830.0,118820.0,0.17364183]
[1754975959971,0.21645325,118830.0,118820.0,0.17364183]
[1754975963637,0.21645325,118830.0,118820.0,0.00316]
[1754975963638,0.38476091,118830.0,118820.0,0.00316]
[1754975963837,0.44011539,118830.0,118820.0,0.00316]
[1754975964801,0.44011539,118830.0,118820.0,0.00216]
[1754975965002,0.44011539,118830.0,118820.0,0.00016]
[1754975965409,0.44011539,118830.0,118820.0,0.00116]
[1754975968259,0.45756441,118830.0,118820.0,0.00116]
[1754975968699,0.53177441,118830.0,118820.0,0.00116]
[1754975968877,0.48122441,118830.0,118820.0,0.00116]
[1754975969554,0.48581041,118830.0,118820.0,0.00116]
[1754975969756,0.48581041,118830.0,118820.0,0.00016]
[1754975970018,0.48681041,118830.0,118820.0,0.00016]
[1754975970732,0.49564193,118830.0,118820.0,0.00016]
[1754975970948,0.53522025,118830.0,118820.0,0.00016]
[1754975972794,1.33663145,118830.0,118820.0,0.00016]
[1754975972992,1.352282,118830.0,118820.0,0.00016]
[1754975973449,1.33662583,118830.0,118820.0,0.00016]
[1754975975031,1.33662245,118830.0,118820.0,0.00016]
[1754975975384,1.33075139,118830.0,118820.0,0.00016]
[1754975978964,1.38130139,118830.0,118820.0,0.00016]
[1754975979116,0.564228,118830.0,118820.0,0.00016]
[1754975979283,1.38130139,118830.0,118820.0,0.00016]
[1754975980314,1.38127524,118830.0,118820.0,0.00016]
[1754975981181,1.3632585,118830.0,118820.0,0.00016]
[1754975981534,1.38127524,118830.0,118820.0,0.00016]
[1754975982224,1.38127041,118830.0,118820.0,0.00016]
[1754975986427,1.3871386,118830.0,118820.0,0.00016]
[1754975988153,1.37345054,118830.0,118820.0,0.00016]
[1754975988384,1.38714503,118830.0,118820.0,0.00016]
[1754975990424,1.40280263,118830.0,118820.0,0.00016]
[1754975991262,1.38911106,118830.0,118820.0,0.00016]
[1754975991454,1.40281401,118830.0,118820.0,0.00016]
[1754975991936,1.60493759,118830.0,118820.0,0.00016]
[1754975994188,1.58127759,118830.0,118820.0,0.00016]
[1754975994326,1.58128359,118830.0,118820.0,0.00016]
[1754975997117,1.98977524,118830.0,118820.0,0.00016]
[1754975997522,2.01233555,118830.0,118820.0,0.00016]
[1754976000362,1.99862302,118830.0,118820.0,0.00016]
[1754976000523,2.01239636,118830.0,118820.0,0.00016]
[1754976000935,2.01239643,118830.0,118820.0,0.00016]
[1754976001336,2.01250875,118830.0,118820.0,0.00016]
[1754976002378,2.01250809,118830.0,118820.0,0.00016]
[1754976002587,2.01250695,118830.0,118820.0,0.00016]
[1754976005621,2.01250643,118830.0,118820.0,0.00016]
[1754976005835,0.78694139,118830.0,118820.0,0.00016]
[1754976006054,2.01250643,118830.0,118820.0,0.00016]
[1754976007222,2.01250392,118830.0,118820.0,0.00016]
[1754976008471,1.95714944,118830.0,118820.0,0.00016]
[1754976008662,1.95714944,118830.0,118820.0,0.00231]
[1754976008663,0.5473044,118830.0,118820.0,0.00231]
[1754976008875,1.28840692,118830.0,118820.0,0.00231]
[1754976009032,1.28840692,118830.0,118820.0,0.00543]
[1754976009234,1.28840692,118830.0,118820.0,0.00231]
[1754976009887,1.98895387,118830.0,118820.0,0.00016]
[1754976011599,1.98894922,118830.0,118820.0,0.00016]
[1754976012008,1.98894907,118830.0,118820.0,0.00016]
[1754976012796,1.58031063,118830.0,118820.0,0.00016]
[1754976015819,0.76338403,118830.0,118820.0,0.00016]
[1754976016022,1.57572463,118830.0,118820.0,0.00016]
[1754976016222,1.4932402,118830.0,118820.0,0.00016]
[1754976020542,1.48735129,118830.0,118820.0,0.00016]
[1754976020744,1.54378513,118830.0,118820.0,0.00016]
[1754976020997,1.54378432,118830.0,118820.0,0.00016]
[1754976021197,1.54715632,118830.0,118820.0,0.00016]
[1754976021423,1.62964075,118830.0,118820.0,0.00016]
[1754976022608,1.6296404,118830.0,118820.0,0.00016]
[1754976024255,0.8127138,118830.0,118820.0,0.00016]
[1754976024460,1.6296404,118830.0,118820.0,0.00016]
[1754976025235,0.8127138,118830.0,118820.0,0.00016]
[1754976025424,1.6296404,118830.0,118820.0,0.00016]
[1754976027843,1.49656597,118830.0,118820.0,0.0023]
[1754976028054,0.54607937,118830.0,118820.0,0.0023]
[1754976028255,1.49128597,118830.0,118820.0,0.0023]
[1754976028694,1.46868076,118830.0,118820.0,0.0023]
[1754976028903,1.46868076,118830.0,118820.0,0.00526]
[1754976029323,1.46838076,118830.0,118820.0,0.0023]
[1754976029527,1.46053602,118830.0,118820.0,0.0023]
[1754976029729,1.46837675,118830.0,118820.0,0.0023]
[1754976029930,1.47370675,118830.0,118820.0,0.0023]
[1754976032522,1.46586099,118830.0,118820.0,0.00016]
[1754976032757,1.47370373,118830.0,118820.0,0.00016]
[1754976033263,1.47370373,118830.0,118820.0,0.0023]
[1754976034268,1.34009373,118830.0,118820.0,0.0023]
[1754976034469,1.46496173,118830.0,118820.0,0.00526]
[1754976034662,1.26058172,118830.0,118820.0,0.00526]
[1754976035577,1.26058041,118830.0,118820.0,0.00526]
[1754976036665,1.46475505,118830.0,118820.0,0.00526]
[1754976036864,1.44906956,118830.0,118820.0,0.00526]
[1754976038145,1.4309854,118830.0,118820.0,0.00526]
[1754976038352,1.4251039,118830.0,118820.0,0.00526]
[1754976038552,1.41726116,118830.0,118820.0,0.00526]
[1754976038754,1.42509942,118830.0,118820.0,0.00526]
[1754976039170,0.60837805,118830.0,118820.0,0.00526]
[1754976039944,0.58309091,118830.0,118820.0,0.00526]
[1754976040981,0.58309091,118830.0,118820.0,0.17358183]
[1754976042864,0.58309091,118830.0,118820.0,0.00526]
[1754976043586,0.45485091,118830.0,118820.0,0.00526]
[1754976043793,0.58305091,118830.0,118820.0,0.00526]
[1754976043994,0.60236543,118830.0,118820.0,0.00526]
[1754976044577,0.60136543,118830.0,118820.0,0.00526]
[1754976044940,0.60236543,118830.0,118820.0,0.00526]
[1754976045313,0.60136543,118830.0,118820.0,0.00526]
[1754976045754,1.04836543,118830.0,118820.0,0.00526]
[1754976046578,1.04836543,118830.0,118820.0,0.17358183]
[1754976047387,0.88005777,118830.0,118820.0,0.19885983]
[1754976047996,0.87905777,118830.0,118820.0,0.19885983]
[1754976048151,0.87905777,118830.0,118820.0,0.19985983]
[1754976048351,0.87805777,118830.0,118820.0,0.19985983]
[1754976048555,0.87805777,118830.0,118820.0,0.19885983]
[1754976049587,0.87805777,118830.0,118820.0,0.19985983]
[1754976050059,0.87805777,118830.0,118820.0,0.20185983]
[1754976050508,1.04636543,118830.0,118820.0,0.030578]
[1754976050724,1.04636543,118830.0,118820.0,0.17362183]
[1754976050928,1.05145543,118830.0,118820.0,0.17148183]
[1754976051134,1.86817666,118830.0,118820.0,0.17148183]
[1754976051971,1.86817666,118830.0,118820.0,0.00316]
[1754976052329,1.05145543,118830.0,118820.0,0.00316]
[1754976052502,1.86817666,118830.0,118820.0,0.00316]
[1754976052706,1.95066109,118830.0,118820.0,0.00316]
[1754976053002,1.96811011,118830.0,118820.0,0.00316]
[1754976053395,1.96811011,118830.0,118820.0,0.00116]
[1754976053829,1.96811011,118830.0,118820.0,0.00216]
[1754976054843,1.96811011,118830.0,118820.0,0.00116]
[1754976055926,1.96911011,118830.0,118820.0,0.00116]
[1754976056235,1.96911011,118830.0,118820.0,0.00016]
[1754976056491,1.97248111,118830.0,118820.0,0.00016]
[1754976056880,1.52748111,118830.0,118820.0,0.00016]
[1754976057085,1.56912288,118830.0,118820.0,0.00016]
[1754976057306,0.16832183,118820.0,118810.0,0.0002]
[1754976057496,0.16832183,118820.0,118800.0,0.0002]
[1754976057497,0.98505722,118810.0,118800.0,0.0002]
[1754976057818,1.23275119,118810.0,118800.0,0.0002]
[1754976057946,1.22492695,118810.0,118800.0,0.0002]
[1754976058349,1.22242964,118810.0,118800.0,0.0002]
[1754976058722,1.21291109,118810.0,118800.0,0.0002]
[1754976058847,1.29539552,118810.0,118800.0,0.0002]
[1754976059503,1.29739552,118810.0,118800.0,0.0002]
[1754976059705,1.29839552,118810.0,118800.0,0.0002]
[1754976067871,0.39918986,118810.0,118800.0,0.00225]
[1754976068076,1.23336011,118810.0,118800.0,0.00225]
[1754976068274,1.23336011,118810.0,118800.0,0.0002]
[1754976078316,2.05008134,118810.0,118800.0,0.0002]
[1754976079155,2.10483785,118810.0,118800.0,0.0002]
[1754976079364,2.18732228,118810.0,118800.0,0.0002]
[1754976079685,2.2029576,118810.0,118800.0,0.0002]
[1754976079864,2.20295747,118810.0,118800.0,0.0002]
[1754976081456,2.22551,118810.0,118800.0,0.0002]
[1754976082711,1.80179262,118800.0,118790.0,0.0002]
[1754976082877,2.11820876,118800.0,118790.0,0.0002]
[1754976083086,2.14755488,118800.0,118790.0,0.0002]
[1754976084073,2.14755488,118800.0,118790.0,0.00028204]
[1754976084279,2.1660039,118800.0,118790.0,0.00028204]
[1754976084481,2.18855643,118800.0,118790.0,0.00028204]
[1754976086501,2.21872148,118800.0,118790.0,0.00028204]
[1754976088130,2.22279046,118800.0,118790.0,1e-08]
[1754976088504,2.26287347,118800.0,118790.0,1e-08]
[1754976088707,2.28594347,118800.0,118790.0,1e-08]
[1754976089128,2.28494347,118800.0,118790.0,1e-08]
[1754976089736,2.28894347,118800.0,118790.0,1e-08]
[1754976090446,2.28994347,118800.0,118790.0,1e-08]
[1754976090647,1.02753459,118790.0,118780.0,1e-08]
[1754976090850,1.44621497,118790.0,118780.0,1e-08]
[1754976091182,0.62949374,118790.0,118780.0,1e-08]
[1754976092002,0.62948387,118790.0,118780.0,1e-08]
[1754976092193,0.63148387,118790.0,118780.0,1e-08]
[1754976092495,0.63448158,118790.0,118780.0,1e-08]
[1754976092616,0.66285458,118790.0,118780.0,1e-08]
[1754976093022,0.63785458,118790.0,118780.0,1e-08]
[1754976093293,0.23582753,118780.0,118770.0,1e-08]
[1754976093484,0.63212763,118780.0,118770.0,1e-08]
[1754976094038,0.60711466,118780.0,118770.0,1e-08]
[1754976094514,0.63311466,118780.0,118770.0,1e-08]
[1754976094923,0.63410862,118780.0,118770.0,1e-08]
[1754976095318,0.69392973,118780.0,118770.0,1e-08]
[1754976095542,0.69903973,118780.0,118770.0,1e-08]
[1754976096213,0.69903973,118780.0,118770.0,0.00210001]
[1754976096214,0.51780973,118780.0,118770.0,0.00210001]
[1754976096345,1.44592643,118780.0,118770.0,0.00210001]
[1754976096554,1.47109732,118780.0,118770.0,0.00210001]
[1754976096795,1.47613732,118780.0,118770.0,0.00210001]
[1754976097235,1.47613732,118780.0,118760.0,0.00037871]
[1754976097236,1.42901391,118770.0,118760.0,0.00037871]
[1754976097452,0.99701865,118770.0,118760.0,0.00252754]
[1754976097669,1.9119517,118770.0,118760.0,0.00252754]
[1754976098052,1.9372487,118770.0,118760.0,0.00252754]
[1754976098252,2.04972131,118770.0,118760.0,0.00252754]
[1754976098628,2.05072131,118770.0,118760.0,0.00252754]
[1754976098937,1.60682132,118770.0,118760.0,0.00252754]
[1754976099779,1.52433689,118770.0,118760.0,0.00252754]
[1754976100630,0.70175195,118770.0,118760.0,0.00252754]
[1754976100836,1.52430874,118770.0,118760.0,0.00252754]
[1754976102710,1.41355776,118770.0,118760.0,0.00386754]
[1754976102912,1.59425401,118770.0,118760.0,0.00386754]
[1754976103116,1.59426298,118770.0,118760.0,0.00386754]
[1754976103299,1.57082457,118770.0,118760.0,0.00386754]
[1754976103500,1.57082457,118770.0,118760.0,0.00252754]
[1754976104142,1.59426762,118770.0,118760.0,0.00252754]
[1754976106845,1.59427141,118770.0,118760.0,0.00252754]
[1754976107764,2.41613264,118770.0,118760.0,0.00042754]
[1754976107938,2.44612082,118770.0,118760.0,0.00042754]
[1754976108156,1.62939959,118770.0,118760.0,0.00042754]
[1754976109787,1.62354223,118770.0,118760.0,0.00042754]
[1754976109970,1.62943869,118770.0,118760.0,0.00042754]
[1754976110314,1.6294399,118770.0,118760.0,0.00042754]
[1754976111659,1.59945172,118770.0,118760.0,0.00042754]
[1754976113011,0.78273049,118770.0,118760.0,0.00042754]
[1754976113246,1.59945172,118770.0,118760.0,0.00042754]
[1754976116385,2.41617295,118770.0,118760.0,1e-08]
[1754976116585,2.47422,118770.0,118760.0,1e-08]
[1754976116748,2.51920658,118770.0,118760.0,1e-08]
[1754976117421,1.65749877,118770.0,118760.0,1e-08]
[1754976117742,2.47422,118770.0,118760.0,1e-08]
[1754976118401,2.51920658,118770.0,118760.0,1e-08]
[1754976118601,2.47422,118770.0,118760.0,1e-08]
[1754976118914,2.46052525,118770.0,118760.0,1e-08]
[1754976119063,2.51925293,118770.0,118760.0,1e-08]
[1754976120088,0.86490389,118770.0,118760.0,1e-08]
[1754976120290,2.49834635,118770.0,118760.0,1e-08]
[1754976120516,1.68162512,118770.0,118760.0,1e-08]
[1754976120726,1.65754512,118770.0,118760.0,1e-08]
[1754976120941,0.86439299,118770.0,118760.0,1e-08]
[1754976121147,1.68410791,118770.0,118760.0,1e-08]
[1754976121355,1.68110549,118770.0,118760.0,1e-08]
[1754976121570,1.68110549,118770.0,118760.0,0.00205001]
[1754976121786,1.68310549,118770.0,118760.0,1e-08]
[1754976122004,1.68510549,118770.0,118760.0,1e-08]
[1754976122218,1.60262106,118770.0,118760.0,1e-08]
[1754976122419,1.60062106,118770.0,118760.0,1e-08]
[1754976122913,1.60262106,118770.0,118760.0,1e-08]
[1754976123335,0.78589983,118770.0,118760.0,1e-08]
[1754976123558,1.55207106,118770.0,118760.0,1e-08]
[1754976123770,2.36879229,118770.0,118760.0,1e-08]
[1754976123977,2.37217953,118770.0,118760.0,1e-08]
[1754976124193,2.37030319,118770.0,118760.0,1e-08]
[1754976124407,0.73686073,118770.0,118760.0,1e-08]
[1754976124614,2.37030319,118770.0,118760.0,1e-08]
[1754976125112,1.55358196,118770.0,118760.0,1e-08]
[1754976127102,1.553581,118770.0,118760.0,1e-08]
[1754976127569,1.5294996,118770.0,118760.0,1e-08]
[1754976127793,1.4002996,118770.0,118760.0,1e-08]
[1754976128024,1.5301396,118770.0,118760.0,1e-08]
[1754976129300,1.55269934,118770.0,118760.0,1e-08]
[1754976131977,1.52267116,118770.0,118760.0,0.00213001]
[1754976132674,1.52067116,118770.0,118760.0,0.00213001]
[1754976132889,1.49297142,118770.0,118760.0,0.00213001]
[1754976133096,1.49497142,118770.0,118760.0,0.00213001]
[1754976133491,1.49297142,118770.0,118760.0,0.00213001]
[1754976133856,1.49497142,118770.0,118760.0,0.00213001]
[1754976134096,1.49802142,118770.0,118760.0,0.00213001]
[1754976134269,1.50015142,118770.0,118760.0,0.00213001]
[1754976134917,0.68343019,118770.0,118760.0,0.00213001]
[1754976135108,1.50015142,118770.0,118760.0,1e-08]
[1754976135884,1.48448286,118770.0,118760.0,1e-08]
[1754976136110,1.500152,118770.0,118760.0,1e-08]
[1754976136516,1.50015318,118770.0,118760.0,1e-08]
[1754976137641,1.50015318,118770.0,118760.0,0.00213001]
[1754976138373,1.50015467,118770.0,118760.0,0.00213001]
[1754976138596,1.50015467,118770.0,118760.0,1e-08]
[1754976139051,1.50015467,118770.0,118760.0,0.00213001]
[1754976139276,1.49497467,118770.0,118760.0,0.00213001]
[1754976139518,1.49802467,118770.0,118760.0,0.00213001]
[1754976139752,0.54845344,118770.0,118760.0,0.00213001]
[1754976139963,1.45045926,118770.0,118760.0,0.00213001]
[1754976140171,1.44845926,118770.0,118760.0,0.00213001]
[1754976140406,1.45145926,118770.0,118760.0,0.00213001]
[1754976140587,1.44945926,118770.0,118760.0,0.00213001]
[1754976140801,1.45250926,118770.0,118760.0,0.00213001]
[1754976141001,1.45450926,118770.0,118760.0,0.00213001]
[1754976141447,1.45250926,118770.0,118760.0,0.00213001]
[1754976141825,1.44845926,118770.0,118760.0,0.00213001]
[1754976143880,1.45150926,118770.0,118760.0,0.00213001]
[1754976144100,1.45363926,118770.0,118760.0,0.00213001]
[1754976144316,1.32170926,118770.0,118760.0,0.00213001]
[1754976144577,0.50193803,118770.0,118760.0,0.00347001]
[1754976144783,0.62578196,118770.0,118760.0,0.00347001]
[1754976144993,0.62578196,118770.0,118760.0,0.00213001]
[1754976145605,1.44250319,118770.0,118760.0,0.00213001]
[1754976147419,0.62578196,118770.0,118760.0,0.00213001]
[1754976147618,1.44250319,118770.0,118760.0,0.00213001]
[1754976148794,0.62578196,118770.0,118760.0,0.00213001]
[1754976148965,1.44250319,118770.0,118760.0,0.00213001]
[1754976150121,1.44555319,118770.0,118760.0,0.00213001]
[1754976150338,1.44768319,118770.0,118760.0,0.00213001]
[1754976153054,0.63096196,118770.0,118760.0,0.00213001]
[1754976153252,1.44768319,118770.0,118760.0,0.00213001]
[1754976153735,0.63096196,118770.0,118760.0,0.00213001]
[1754976153966,1.44772319,118770.0,118760.0,0.00213001]
[1754976154859,0.63100196,118770.0,118760.0,0.00213001]
[1754976155000,1.44772319,118770.0,118760.0,0.00213001]
[1754976155457,0.63100196,118770.0,118760.0,0.00213001]
[1754976155625,1.44772319,118770.0,118760.0,0.00213001]
[1754976156881,0.63100196,118770.0,118760.0,0.00213001]
[1754976157919,0.16840687,118760.0,118750.0,0.99025226]
[1754976158129,0.82685012,118760.0,118750.0,0.8219777]
[1754976159091,0.82685012,118760.0,118750.0,0.8229777]
[1754976159473,0.82685012,118760.0,118750.0,0.8239777]
[1754976160075,0.82982012,118760.0,118750.0,0.00725647]
[1754976160506,0.85841472,118760.0,118750.0,0.00725647]
[1754976162163,0.86049472,118760.0,118750.0,0.00725647]
[1754976165227,0.73077472,118760.0,118750.0,0.00725647]
[1754976165438,0.86077472,118760.0,118750.0,0.00725647]
[1754976172937,0.86077472,118760.0,118750.0,0.8239777]
[1754976173530,0.86077472,118760.0,118750.0,0.00725647]
[1754976173944,0.72869472,118760.0,118750.0,0.99239875]
[1754976174145,0.85568472,118760.0,118750.0,0.99239875]
[1754976174658,0.85865472,118760.0,118750.0,0.99239875]
[1754976175981,0.86073472,118760.0,118750.0,0.99239875]
[1754976176510,0.86073472,118760.0,118750.0,0.17567752]
[1754976176691,0.86073472,118760.0,118750.0,0.99239875]
[1754976177397,0.69024785,118760.0,118750.0,0.99239875]
[1754976177604,0.68723785,118760.0,118750.0,0.17567752]
[1754976177806,0.68723785,118760.0,118750.0,0.99239875]
[1754976180671,0.68723785,118760.0,118750.0,0.17567752]
[1754976180886,0.68723785,118760.0,118750.0,0.99239875]
[1754976182490,0.0285946,118760.0,118750.0,0.99239875]
[1754976182691,0.1583546,118760.0,118750.0,0.99239875]
[1754976182899,0.20505943,118780.0,118750.0,0.99239875]
[1754976182900,0.03668092,118780.0,118760.0,0.16305688]
[1754976183114,0.03668092,118780.0,118770.0,0.98511392]
[1754976183327,0.22599217,118780.0,118770.0,0.98511392]
[1754976183958,0.08272325,118780.0,118770.0,0.98511392]
[1754976184183,0.21252325,118780.0,118770.0,0.98511392]
[1754976184813,0.21252325,118780.0,118770.0,0.98611392]
[1754976185657,0.08272325,118780.0,118770.0,0.98611392]
[1754976185858,0.21248325,118780.0,118770.0,0.98611392]
[1754976186230,0.21248325,118780.0,118770.0,0.98511392]
[1754976186430,0.21248325,118780.0,118770.0,0.98711392]
[1754976186675,0.21248325,118780.0,118770.0,0.99765773]
[1754976189038,0.21248325,118780.0,118770.0,0.98911392]
[1754976190275,0.12976,118780.0,118770.0,0.98911392]
[1754976191429,0.12976,118780.0,118770.0,0.17239269]
[1754976191840,0.12976,118780.0,118770.0,0.98911392]
[1754976193198,0.13294,118780.0,118770.0,0.98911392]
[1754976193778,0.12976,118780.0,118770.0,0.98911392]
[1754976194621,0.13294,118780.0,118770.0,0.98911392]
[1754976198658,0.12976,118780.0,118770.0,0.98911392]
[1754976199106,0.13294,118780.0,118770.0,0.98911392]
[1754976200572,0.12976,118780.0,118770.0,0.98911392]
[1754976201563,0.03102283,118790.0,118780.0,0.16837851]
[1754976201766,0.03102283,118790.0,118780.0,0.98509974]
[1754976201767,0.24526608,118790.0,118780.0,0.98509974]
[1754976202512,0.24318608,118790.0,118780.0,0.98509974]
[1754976202718,0.24000608,118790.0,118780.0,0.98609974]
[1754976203088,0.24000608,118790.0,118780.0,0.98809974]
[1754976203675,0.02784283,118790.0,118780.0,0.98809974]
[1754976203894,0.15732283,118790.0,118780.0,0.98809974]
[1754976205759,0.15728283,118790.0,118780.0,0.98809974]
[1754976207559,0.12944,118790.0,118780.0,0.98809974]
[1754976208259,0.65138,118800.0,118790.0,0.16836434]
[1754976208452,0.77756,118800.0,118790.0,0.98508557]
[1754976209002,0.77756,118800.0,118790.0,0.16836434]
[1754976209208,0.78074,118800.0,118790.0,0.98508557]
[1754976209431,0.78074,118800.0,118790.0,0.98623204]
[1754976209608,0.78074,118800.0,118790.0,0.98923204]
[1754976209795,0.78074,118800.0,118790.0,0.98823204]
[1754976211373,0.33474,118800.0,118790.0,0.98823204]
[1754976211737,0.33474,118800.0,118790.0,0.98923204]
[1754976213166,0.33374,118800.0,118790.0,0.98923204]
[1754976213721,0.12936,118800.0,118790.0,0.98923204]
[1754976214427,0.12936,118800.0,118790.0,1.01451104]
[1754976218229,0.13369886,118810.0,118800.0,0.16835016]
[1754976218431,0.13369886,118810.0,118800.0,0.98507139]
[1754976218629,0.13369886,118810.0,118800.0,1.80179262]
[1754976218840,0.00131886,118810.0,118800.0,1.80179262]
[1754976219051,0.13047886,118810.0,118800.0,1.80179262]
[1754976219457,0.13047886,118810.0,118800.0,1.82707062]
[1754976219858,0.13047886,118810.0,118800.0,1.82907062]
[1754976220006,0.13047886,118810.0,118800.0,1.82707062]
[1754976220205,0.13368886,118810.0,118800.0,1.82707062]
[1754976220411,0.13368886,118810.0,118800.0,1.83007062]
[1754976220620,0.13368886,118810.0,118800.0,1.01434939]
[1754976221052,0.13368886,118810.0,118800.0,1.83107062]
[1754976221210,0.13368886,118810.0,118800.0,1.83007062]
[1754976221411,0.13368886,118810.0,118800.0,1.01534939]
[1754976223078,0.13566886,118810.0,118800.0,1.01534939]
[1754976223449,0.13566886,118810.0,118800.0,0.19862816]
[1754976223656,0.13566886,118810.0,118800.0,1.01534939]
[1754976227012,0.13368886,118810.0,118800.0,1.01534939]
[1754976227214,0.13368886,118810.0,118800.0,1.83207062]
[1754976230611,0.00131886,118810.0,118800.0,1.83207062]
[1754976230810,0.00131886,118810.0,118800.0,1.01534939]
[1754976230956,0.00131886,118810.0,118800.0,1.83207062]
[1754976231366,0.00452886,118810.0,118800.0,1.83207062]
[1754976231567,0.00452886,118810.0,118800.0,1.01534939]
[1754976233181,0.00452886,118810.0,118800.0,1.10534939]
[1754976234585,0.00452886,118810.0,118800.0,1.92207062]
[1754976235430,0.00131886,118810.0,118800.0,1.92207062]
[1754976236004,0.00452886,118810.0,118800.0,1.92207062]
[1754976238654,0.00452886,118810.0,118800.0,1.51334356]
[1754976241742,0.00452886,118810.0,118800.0,0.28862816]
[1754976241943,0.00452886,118810.0,118800.0,1.51334356]
[1754976242149,0.00650886,118810.0,118800.0,1.51334356]
[1754976242552,0.00452886,118810.0,118800.0,1.51334356]
[1754976244153,0.00131886,118810.0,118800.0,1.51334356]
[1754976244588,0.00131886,118810.0,118800.0,2.25450126]
[1754976244792,0.00131886,118810.0,118800.0,1.64214356]
[1754976245201,0.00131886,118810.0,118800.0,2.25450126]
[1754976245988,0.00131886,118810.0,118800.0,1.64214356]
[1754976246381,0.00131886,118810.0,118800.0,1.51334356]
[1754976246591,0.00131886,118810.0,118800.0,1.53864154]
[1754976252418,0.00131886,118810.0,118800.0,0.31392614]
[1754976252603,0.00449886,118810.0,118800.0,1.53864154]
[1754976254112,0.00131886,118810.0,118800.0,1.53864154]
[1754976254500,0.00131886,118810.0,118800.0,1.66724154]
[1754976263570,0.00131886,118810.0,118800.0,2.36232249]
[1754976267697,0.00131886,118810.0,118800.0,1.72466681]